[Event "Vastgota Open 2023"]
[Site "Skara stadshotell, Jarnvagsgatan 5, Skara, Sweden"]
[Date "2023.02.18"]
[Round "2.11"]
[White "Bjorkman, Filip"]
[Black "Ernst, Thomas"]
[Result "1/2-1/2"]
[TimeControl "15 minutes + 5 seconds per move from move one (Round 1 - 2) / 30 minutes + 10 seconds per move from move one (Round 3 - 9)"]
[BlackTitle "GM"]
[WhiteFideId "1734970"]
[BlackFideId "1700065"]
[WhiteElo "1957"]
[BlackElo "2315"]

1. e4 {[%clk 00:15:07]} {[%emt 00:00:02]} c5 {[%clk 00:15:08]} {[%emt
00:00:03]} 2. Nf3 {[%clk 00:15:08]} {[%emt 00:00:03]} d6 {[%clk 00:15:10]}
{[%emt 00:00:03]} 3. d4 {[%clk 00:15:10]} {[%emt 00:00:03]} cxd4 {[%clk
00:15:13]} {[%emt 00:00:03]} 4. Nxd4 {[%clk 00:15:12]} {[%emt 00:00:02]} Nf6
{[%clk 00:15:16]} {[%emt 00:00:02]} 5. Nc3 {[%clk 00:15:15]} {[%emt 00:00:02]}
g6 {[%clk 00:15:19]} {[%emt 00:00:03]} 6. Be3 {[%clk 00:15:14]} {[%emt
00:00:05]} Bg7 {[%clk 00:15:22]} {[%emt 00:00:02]} 7. f3 {[%clk 00:14:51]}
{[%emt 00:00:29]} Nc6 {[%clk 00:15:24]} {[%emt 00:00:03]} 8. Qd2 {[%clk
00:14:54]} {[%emt 00:00:01]} O-O {[%clk 00:15:25]} {[%emt 00:00:05]} 9. O-O-O
{[%clk 00:14:56]} {[%emt 00:00:03]} d5 {[%clk 00:15:27]} {[%emt 00:00:02]} 10.
Qe1 {[%clk 00:14:32]} {[%emt 00:00:28]} e5 {[%clk 00:15:19]} {[%emt 00:00:14]}
11. Nxc6 {[%clk 00:14:34]} {[%emt 00:00:03]} bxc6 {[%clk 00:15:21]} {[%emt
00:00:03]} 12. exd5 {[%clk 00:14:36]} {[%emt 00:00:02]} Nxd5 {[%clk 00:15:19]}
{[%emt 00:00:07]} 13. Bc4 {[%clk 00:13:56]} {[%emt 00:00:46]} Be6 {[%clk
00:15:15]} {[%emt 00:00:10]} 14. Ne4 {[%clk 00:13:55]} {[%emt 00:00:06]} Qc7
{[%clk 00:14:31]} {[%emt 00:00:48]} 15. Bc5 {[%clk 00:13:32]} {[%emt 00:00:27]}
Rfd8 {[%clk 00:14:11]} {[%emt 00:00:26]} 16. g4 {[%clk 00:11:03]} {[%emt
00:02:33]} h6 {[%clk 00:12:12]} {[%emt 00:02:06]} 17. h4 {[%clk 00:10:51]}
{[%emt 00:00:16]} Rab8 {[%clk 00:11:30]} {[%emt 00:00:47]} 18. h5 {[%clk
00:09:44]} {[%emt 00:01:13]} g5 {[%clk 00:11:32]} {[%emt 00:00:02]} 19. b3
{[%clk 00:05:46]} {[%emt 00:04:03]} Rd7 {[%clk 00:11:25]} {[%emt 00:00:12]} 20.
Qf2 {[%clk 00:03:32]} {[%emt 00:02:19]} Rbd8 {[%emt 00:00:36]} 21. Rhe1 {[%clk
00:03:30]} {[%emt 00:00:05]} Nf4 {[%clk 00:08:43]} {[%emt 00:02:18]} 22. Bxe6
{[%clk 00:03:17]} {[%emt 00:00:18]} Nxe6 {[%clk 00:08:46]} {[%emt 00:00:02]} 23.
Ba3 {[%clk 00:02:44]} {[%emt 00:00:38]} Rxd1+ {[%clk 00:07:59]} {[%emt
00:00:53]} 24. Rxd1 {[%clk 00:02:46]} {[%emt 00:00:03]} Rxd1+ {[%clk 00:08:02]}
{[%emt 00:00:01]} 25. Kxd1 {[%clk 00:02:50]} {[%emt 00:00:02]} Qa5 {[%clk
00:07:57]} {[%emt 00:00:07]} 26. Bb2 {[%clk 00:02:49]} {[%emt 00:00:08]} Qxa2
{[%clk 00:07:58]} {[%emt 00:00:03]} 27. Kc1 {[%clk 00:02:52]} {[%emt 00:00:03]}
Qa5 {[%clk 00:07:35]} {[%emt 00:00:26]} 28. Bc3 {[%clk 00:02:44]} {[%emt
00:00:15]} Qa6 {[%clk 00:07:23]} {[%emt 00:00:14]} 29. Kb2 {[%clk 00:02:47]}
{[%emt 00:00:05]} Nd4 {[%clk 00:07:13]} {[%emt 00:00:15]} 30. f4 {[%clk
00:02:18]} {[%emt 00:00:34]} gxf4 {[%clk 00:06:43]} {[%emt 00:00:35]} 31. Qh4
{[%clk 00:02:22]} {[%emt 00:00:02]} Qe2 {[%clk 00:05:27]} {[%emt 00:01:19]} 32.
Qd8+ {[%clk 00:02:20]} {[%emt 00:00:08]} Kh7 {[%clk 00:05:30]} {[%emt
00:00:02]} 33. Bxd4 {[%clk 00:02:19]} {[%emt 00:00:06]} exd4 {[%clk 00:05:33]}
{[%emt 00:00:02]} 34. Nf6+ {[%clk 00:02:19]} {[%emt 00:00:05]} Bxf6 {[%clk
00:05:36]} {[%emt 00:00:02]} 35. Qxf6 {[%clk 00:02:22]} {[%emt 00:00:02]} Qe6
{[%clk 00:04:56]} {[%emt 00:00:45]} 36. Qxf4 {[%clk 00:02:25]} {[%emt
00:00:02]} c5 {[%clk 00:04:53]} {[%emt 00:00:07]} 37. g5 {[%clk 00:02:27]}
{[%emt 00:00:04]} Qd5 {[%clk 00:04:10]} {[%emt 00:00:48]} 38. Qf6 {[%clk
00:01:46]} {[%emt 00:00:47]} Qxg5 {[%clk 00:03:47]} {[%emt 00:00:28]} 39. Qxf7+
{[%clk 00:01:48]} {[%emt 00:00:02]} Kh8 {[%clk 00:03:42]} {[%emt 00:00:10]} 40.
Qf8+ {[%clk 00:01:47]} {[%emt 00:00:07]} Kh7 {[%clk 00:03:20]} {[%emt
00:00:27]} 41. Qf7+ {[%clk 00:01:50]} {[%emt 00:00:02]} 1/2-1/2

[Event "Vastgota Open 2023"]
[Site "Skara stadshotell, Jarnvagsgatan 5, Skara, Sweden"]
[Date "2023.02.18"]
[Round "2.12"]
[White "Lindgren, Philip"]
[Black "Cederqvist, Niclas"]
[Result "1-0"]
[TimeControl "15 minutes + 5 seconds per move from move one (Round 1 - 2) / 30 minutes + 10 seconds per move from move one (Round 3 - 9)"]
[WhiteTitle "IM"]
[WhiteFideId "1713230"]
[BlackFideId "1702076"]
[WhiteElo "2282"]
[BlackElo "1938"]

1. d4 {[%clk 00:15:05]} {[%emt 00:00:04]} d5 {[%clk 00:15:04]} {[%emt
00:00:06]} 2. c4 {[%clk 00:15:04]} {[%emt 00:00:07]} c6 {[%clk 00:15:05]}
{[%emt 00:00:04]} 3. Nf3 {[%clk 00:15:04]} {[%emt 00:00:05]} Nf6 {[%clk
00:15:04]} {[%emt 00:00:05]} 4. Nc3 {[%clk 00:14:57]} {[%emt 00:00:12]} e6
{[%clk 00:15:03]} {[%emt 00:00:06]} 5. e3 {[%clk 00:14:28]} {[%emt 00:00:34]}
Nbd7 {[%clk 00:14:52]} {[%emt 00:00:16]} 6. Qc2 {[%clk 00:14:18]} {[%emt
00:00:16]} a6 {[%clk 00:13:52]} {[%emt 00:01:04]} 7. b3 {[%clk 00:14:10]}
{[%emt 00:00:13]} b5 {[%clk 00:12:55]} {[%emt 00:01:02]} 8. Bd3 {[%clk
00:13:11]} {[%emt 00:01:04]} Bb7 {[%clk 00:12:48]} {[%emt 00:00:12]} 9. O-O
{[%clk 00:12:50]} {[%emt 00:00:26]} Be7 {[%clk 00:12:45]} {[%emt 00:00:07]} 10.
Bb2 {[%clk 00:12:05]} {[%emt 00:00:51]} O-O {[%clk 00:12:11]} {[%emt 00:00:40]}
11. c5 {[%clk 00:11:47]} {[%emt 00:00:23]} h6 {[%clk 00:11:52]} {[%emt
00:00:24]} 12. a3 {[%clk 00:10:58]} {[%emt 00:00:54]} Qc7 {[%clk 00:11:05]}
{[%emt 00:00:51]} 13. e4 {[%clk 00:09:35]} {[%emt 00:01:29]} dxe4 {[%clk
00:09:59]} {[%emt 00:01:11]} 14. Nxe4 {[%clk 00:09:38]} {[%emt 00:00:01]} Nxe4
{[%clk 00:09:35]} {[%emt 00:00:29]} 15. Bxe4 {[%clk 00:09:41]} {[%emt
00:00:02]} Bf6 {[%clk 00:09:31]} {[%emt 00:00:09]} 16. Rfe1 {[%clk 00:09:39]}
{[%emt 00:00:08]} Kh8 {[%clk 00:08:39]} {[%emt 00:00:56]} 17. Rad1 {[%clk
00:09:18]} {[%emt 00:00:27]} a5 {[%clk 00:08:26]} {[%emt 00:00:18]} 18. g3
{[%clk 00:08:25]} {[%emt 00:00:58]} Rfe8 {[%clk 00:07:44]} {[%emt 00:00:46]} 19.
Ne5 {[%clk 00:06:32]} {[%emt 00:01:58]} Nxe5 {[%clk 00:06:32]} {[%emt
00:01:17]} 20. dxe5 {[%clk 00:06:35]} {[%emt 00:00:03]} Be7 {[%clk 00:06:19]}
{[%emt 00:00:17]} 21. Qc1 {[%clk 00:06:09]} {[%emt 00:00:31]} Kg8 {[%clk
00:05:00]} {[%emt 00:01:24]} 22. Bb1 {[%clk 00:06:10]} {[%emt 00:00:04]} Bf8
{[%clk 00:02:21]} {[%emt 00:02:45]} 23. h4 {[%clk 00:03:34]} {[%emt 00:02:41]}
h5 {[%clk 00:01:29]} {[%emt 00:00:57]} 24. Qc3 {[%clk 00:03:04]} {[%emt
00:00:35]} b4 {[%clk 00:00:59]} {[%emt 00:00:35]} 25. axb4 {[%clk 00:02:05]}
{[%emt 00:01:04]} axb4 {[%clk 00:01:03]} 26. Qxb4 {[%clk 00:02:07]} {[%emt
00:00:02]} Ra5 {[%clk 00:00:53]} {[%emt 00:00:15]} 27. Qe4 {[%clk 00:01:55]}
{[%emt 00:00:17]} g6 {[%clk 00:00:50]} {[%emt 00:00:09]} 28. b4 {[%clk
00:01:38]} {[%emt 00:00:22]} Ra4 {[%clk 00:00:46]} {[%emt 00:00:08]} 29. Rd6
{[%clk 00:01:16]} 1-0

[Event "Vastgota Open 2023"]
[Site "Skara stadshotell, Jarnvagsgatan 5, Skara, Sweden"]
[Date "2023.02.18"]
[Round "3.1"]
[White "Chatalbashev, Boris"]
[Black "Rasti, Arvin"]
[Result "1/2-1/2"]
[TimeControl "15 minutes + 5 seconds per move from move one (Round 1 - 2) / 30 minutes + 10 seconds per move from move one (Round 3 - 9)"]
[WhiteTitle "GM"]
[WhiteFideId "2900440"]
[BlackFideId "1741160"]
[WhiteElo "2522"]
[BlackElo "2179"]

1. d4 {[%clk 00:30:17]} {[%emt 00:00:04]} Nf6 {[%clk 00:30:16]} {[%emt
00:00:03]} 2. Nf3 {[%clk 00:30:24]} {[%emt 00:00:02]} e6 {[%clk 00:29:53]}
{[%emt 00:00:33]} 3. c4 {[%clk 00:30:27]} {[%emt 00:00:07]} d5 {[%clk
00:30:01]} {[%emt 00:00:03]} 4. Nc3 {[%clk 00:30:31]} {[%emt 00:00:06]} Bb4
{[%clk 00:30:07]} {[%emt 00:00:04]} 5. Qa4+ {[%clk 00:30:02]} {[%emt 00:00:39]}
Nc6 {[%clk 00:30:15]} {[%emt 00:00:02]} 6. e3 {[%clk 00:30:10]} {[%emt
00:00:02]} O-O {[%clk 00:30:06]} {[%emt 00:00:19]} 7. Bd2 {[%clk 00:30:12]}
{[%emt 00:00:07]} a6 {[%clk 00:30:06]} {[%emt 00:00:10]} 8. Qc2 {[%clk
00:30:15]} {[%emt 00:00:07]} dxc4 {[%clk 00:30:01]} {[%emt 00:00:17]} 9. Bxc4
{[%clk 00:30:22]} {[%emt 00:00:02]} Bd6 {[%clk 00:30:09]} {[%emt 00:00:02]} 10.
O-O {[%clk 00:29:58]} {[%emt 00:00:34]} e5 {[%clk 00:29:50]} {[%emt 00:00:29]}
11. dxe5 {[%clk 00:29:31]} {[%emt 00:00:36]} Nxe5 {[%clk 00:29:59]} {[%emt
00:00:02]} 12. Nxe5 {[%clk 00:29:37]} {[%emt 00:00:03]} Bxe5 {[%clk 00:30:07]}
{[%emt 00:00:02]} 13. f4 {[%clk 00:28:29]} {[%emt 00:01:18]} Bxc3 {[%clk
00:30:14]} {[%emt 00:00:03]} 14. Bxc3 {[%clk 00:28:11]} {[%emt 00:00:28]} Re8
{[%clk 00:28:47]} {[%emt 00:01:37]} 15. Rae1 {[%clk 00:26:16]} {[%emt
00:02:05]} Ne4 {[%clk 00:25:48]} {[%emt 00:03:10]} 16. Be5 {[%clk 00:23:05]}
{[%emt 00:03:20]} Nf6 {[%clk 00:21:43]} {[%emt 00:04:15]} 17. Bd3 {[%clk
00:21:10]} {[%emt 00:02:05]} h6 {[%clk 00:21:48]} {[%emt 00:00:06]} 18. Bxc7
{[%clk 00:20:36]} {[%emt 00:00:44]} Qe7 {[%clk 00:21:05]} {[%emt 00:00:52]} 19.
e4 {[%clk 00:18:44]} {[%emt 00:02:03]} Qb4 {[%clk 00:20:01]} {[%emt 00:01:14]}
20. e5 {[%clk 00:17:46]} {[%emt 00:01:07]} Qd4+ {[%clk 00:19:22]} {[%emt
00:00:49]} 21. Kh1 {[%clk 00:17:46]} {[%emt 00:00:10]} Ng4 {[%clk 00:18:02]}
{[%emt 00:01:31]} 22. Qe2 {[%clk 00:15:06]} {[%emt 00:02:49]} Bd7 {[%clk
00:17:49]} {[%emt 00:00:24]} 23. h3 {[%clk 00:14:49]} {[%emt 00:00:27]} Nf6
{[%clk 00:17:51]} {[%emt 00:00:08]} 24. Qd2 {[%clk 00:14:18]} {[%emt 00:00:41]}
Bf5 {[%clk 00:17:37]} {[%emt 00:00:24]} 25. Rd1 {[%clk 00:14:07]} {[%emt
00:00:21]} Ne4 {[%clk 00:14:46]} {[%emt 00:03:02]} 26. Bxe4 {[%clk 00:14:14]}
{[%emt 00:00:02]} Qxd2 {[%clk 00:14:22]} {[%emt 00:00:35]} 27. Rxd2 {[%clk
00:14:21]} {[%emt 00:00:02]} Bxe4 {[%clk 00:14:30]} {[%emt 00:00:01]} 28. Re1
{[%clk 00:13:26]} {[%emt 00:01:05]} f5 {[%clk 00:13:59]} {[%emt 00:00:42]} 29.
Kh2 {[%clk 00:12:21]} {[%emt 00:01:15]} Rac8 {[%clk 00:13:50]} {[%emt
00:00:19]} 30. Bd6 {[%clk 00:12:07]} {[%emt 00:00:24]} Kf7 {[%clk 00:13:46]}
{[%emt 00:00:13]} 31. g4 {[%clk 00:12:11]} {[%emt 00:00:06]} Ke6 {[%clk
00:13:32]} {[%emt 00:00:24]} 32. Kg3 {[%clk 00:10:38]} {[%emt 00:01:44]} g6
{[%clk 00:13:24]} {[%emt 00:00:18]} 33. Re3 {[%clk 00:09:59]} {[%emt 00:00:49]}
Red8 {[%clk 00:12:14]} {[%emt 00:01:20]} 34. Rb3 {[%clk 00:09:39]} {[%emt
00:00:30]} b5 {[%clk 00:11:16]} {[%emt 00:01:07]} 35. Ra3 {[%clk 00:08:14]}
{[%emt 00:01:35]} Bb7 {[%clk 00:10:43]} {[%emt 00:00:44]} 36. Rad3 {[%clk
00:08:22]} {[%emt 00:00:03]} Rc1 {[%clk 00:09:49]} {[%emt 00:01:03]} 37. Bb4
{[%clk 00:07:36]} {[%emt 00:00:55]} Rxd3+ {[%clk 00:09:07]} {[%emt 00:00:53]}
38. Rxd3 {[%clk 00:07:44]} {[%emt 00:00:02]} Bd5 {[%clk 00:08:46]} {[%emt
00:00:30]} 39. gxf5+ {[%clk 00:04:40]} {[%emt 00:03:14]} gxf5 {[%clk 00:08:55]}
{[%emt 00:00:02]} 40. Kh4 {[%clk 00:04:26]} {[%emt 00:00:23]} Rf1 {[%clk
00:08:19]} {[%emt 00:00:46]} 41. Bd2 {[%clk 00:04:25]} {[%emt 00:00:12]} Rf3
{[%clk 00:05:14]} {[%emt 00:03:15]} 42. Be3 {[%clk 00:04:32]} {[%emt 00:00:03]}
b4 {[%clk 00:04:11]} {[%emt 00:01:13]} 43. a3 {[%clk 00:03:55]} {[%emt
00:00:47]} a5 {[%clk 00:04:08]} {[%emt 00:00:13]} 44. a4 {[%clk 00:03:16]}
{[%emt 00:00:49]} Rf1 {[%clk 00:03:53]} {[%emt 00:00:25]} 45. Kh5 {[%clk
00:02:58]} {[%emt 00:00:28]} Rf3 {[%clk 00:03:57]} {[%emt 00:00:06]} 46. h4
{[%clk 00:02:42]} {[%emt 00:00:26]} Rh3 {[%clk 00:03:12]} {[%emt 00:00:55]} 47.
b3 {[%clk 00:02:37]} {[%emt 00:00:15]} Rh2 {[%clk 00:02:54]} {[%emt 00:00:26]}
48. Bb6 {[%clk 00:02:37]} {[%emt 00:00:12]} Rc2 {[%clk 00:00:52]} {[%emt
00:02:12]} 49. Bxa5 {[%clk 00:02:31]} {[%emt 00:00:16]} Rf2 {[%clk 00:00:44]}
50. Bxb4 {[%clk 00:01:59]} {[%emt 00:01:00]} Rxf4 {[%clk 00:00:52]} {[%emt
00:00:02]} 51. Bd2 {[%clk 00:02:07]} {[%emt 00:00:02]} Bf3+ {[%clk 00:00:41]}
{[%emt 00:00:22]} 52. Kxh6 {[%clk 00:01:41]} {[%emt 00:00:34]} Rxh4 {[%clk
00:00:45]} {[%emt 00:00:07]} 53. Kg7 {[%clk 00:01:42]} {[%emt 00:00:08]} Rg4+
{[%clk 00:00:47]} {[%emt 00:00:09]} 54. Kf8 {[%clk 00:01:48]} {[%emt 00:00:04]}
Bd5 {[%clk 00:00:47]} {[%emt 00:00:10]} 55. a5 {[%clk 00:01:45]} {[%emt
00:00:13]} Kxe5 {[%clk 00:00:49]} {[%emt 00:00:08]} 56. Bc3+ {[%clk 00:01:48]}
{[%emt 00:00:07]} Ke6 {[%clk 00:00:56]} {[%emt 00:00:02]} 57. a6 {[%clk
00:01:50]} {[%emt 00:00:09]} Bxb3 {[%clk 00:00:37]} {[%emt 00:00:29]} 58. Ba5
{[%clk 00:00:53]} {[%emt 00:01:07]} Ra4 {[%clk 00:00:30]} {[%emt 00:00:16]} 59.
Re3+ {[%clk 00:00:45]} {[%emt 00:00:19]} Kd7 {[%clk 00:00:28]} {[%emt
00:00:12]} 60. Re5 {[%clk 00:00:29]} {[%emt 00:00:26]} Kc6 {[%clk 00:00:22]}
{[%emt 00:00:17]} 61. a7 {[%clk 00:00:28]} {[%emt 00:00:11]} Kb7 {[%clk
00:00:31]} 62. Re7+ {[%clk 00:00:37]} Ka8 {[%clk 00:00:36]} {[%emt 00:00:05]}
63. Bb6 {[%clk 00:00:43]} {[%emt 00:00:03]} Bd5 {[%clk 00:00:30]} {[%emt
00:00:16]} 64. Re5 {[%clk 00:00:18]} {[%emt 00:00:35]} Be4 {[%clk 00:00:25]}
{[%emt 00:00:16]} 65. Re8+ {[%clk 00:00:25]} {[%emt 00:00:03]} Kb7 {[%emt
00:00:03]} 66. Rb8+ {[%clk 00:00:31]} {[%emt 00:00:01]} Ka6 {[%clk 00:00:38]}
{[%emt 00:00:06]} 67. Bc5 {[%clk 00:00:35]} {[%emt 00:00:06]} Rc4 {[%clk
00:00:40]} {[%emt 00:00:08]} 68. Rb6+ {[%clk 00:00:26]} {[%emt 00:00:19]} Kxa7
{[%clk 00:00:33]} {[%emt 00:00:18]} 69. Be3 {[%clk 00:00:27]} {[%emt 00:00:09]}
Ka8 {[%clk 00:00:36]} {[%emt 00:00:07]} 70. Ke7 {[%clk 00:00:34]} {[%emt
00:00:04]} 1/2-1/2

[Event "Vastgota Open 2023"]
[Site "Skara stadshotell, Jarnvagsgatan 5, Skara, Sweden"]
[Date "2023.02.18"]
[Round "3.2"]
[White "Eklund, Lars-Goran"]
[Black "Miezis, Normunds"]
[Result "1/2-1/2"]
[TimeControl "15 minutes + 5 seconds per move from move one (Round 1 - 2) / 30 minutes + 10 seconds per move from move one (Round 3 - 9)"]
[WhiteTitle "FM"]
[BlackTitle "GM"]
[WhiteFideId "1701010"]
[BlackFideId "11600136"]
[WhiteElo "2196"]
[BlackElo "2502"]

1. Nf3 {[%clk 00:30:17]} c5 {[%clk 00:30:15]} {[%emt 00:00:05]} 2. c4 {[%clk
00:30:09]} {[%emt 00:00:18]} Nc6 {[%clk 00:30:16]} {[%emt 00:00:09]} 3. d4
{[%clk 00:30:14]} {[%emt 00:00:06]} cxd4 {[%clk 00:30:17]} {[%emt 00:00:08]} 4.
Nxd4 {[%clk 00:30:22]} {[%emt 00:00:02]} f5 {[%clk 00:29:58]} {[%emt 00:00:29]}
5. g3 {[%clk 00:28:04]} {[%emt 00:02:29]} g6 {[%clk 00:29:58]} {[%emt
00:00:10]} 6. Nxc6 {[%clk 00:26:57]} {[%emt 00:01:17]} bxc6 {[%clk 00:29:25]}
{[%emt 00:00:43]} 7. Bd2 {[%clk 00:27:05]} {[%emt 00:00:02]} Bg7 {[%clk
00:29:04]} {[%emt 00:00:30]} 8. Bc3 {[%clk 00:27:12]} {[%emt 00:00:03]} Nf6
{[%clk 00:28:51]} {[%emt 00:00:23]} 9. Bg2 {[%clk 00:26:19]} {[%emt 00:01:04]}
O-O {[%clk 00:28:01]} {[%emt 00:01:00]} 10. O-O {[%clk 00:25:24]} {[%emt
00:01:05]} Qc7 {[%clk 00:26:46]} {[%emt 00:01:24]} 11. Nd2 {[%clk 00:20:30]}
{[%emt 00:05:04]} Rb8 {[%clk 00:24:00]} {[%emt 00:02:56]} 12. Qc2 {[%clk
00:16:33]} {[%emt 00:04:08]} c5 {[%clk 00:22:39]} {[%emt 00:01:30]} 13. e4
{[%clk 00:12:53]} {[%emt 00:03:51]} f4 {[%clk 00:21:24]} {[%emt 00:01:24]} 14.
b3 {[%clk 00:08:01]} {[%emt 00:05:02]} Bb7 {[%clk 00:19:40]} {[%emt 00:01:54]}
15. Qb2 {[%clk 00:06:36]} {[%emt 00:01:35]} Rbe8 {[%clk 00:14:55]} {[%emt
00:04:55]} 16. e5 {[%clk 00:03:36]} {[%emt 00:03:11]} Ng4 {[%clk 00:13:35]}
{[%emt 00:01:28]} 17. Bxb7 {[%clk 00:03:44]} {[%emt 00:00:04]} Qxb7 {[%clk
00:13:37]} {[%emt 00:00:07]} 18. h3 {[%clk 00:03:40]} {[%emt 00:00:14]} Nh6
{[%clk 00:08:45]} {[%emt 00:05:01]} 19. g4 {[%clk 00:03:47]} {[%emt 00:00:05]}
f3 {[%clk 00:08:43]} {[%emt 00:00:11]} 20. e6 {[%clk 00:02:56]} {[%emt
00:01:01]} Bxc3 {[%clk 00:08:47]} {[%emt 00:00:06]} 21. Qxc3 {[%clk 00:03:05]}
{[%emt 00:00:02]} dxe6 {[%clk 00:08:12]} {[%emt 00:00:44]} 22. Qe3 {[%clk
00:02:59]} {[%emt 00:00:17]} Nf7 {[%clk 00:08:18]} {[%emt 00:00:03]} 23. Nxf3
{[%clk 00:02:48]} {[%emt 00:00:21]} Rd8 {[%clk 00:08:24]} {[%emt 00:00:04]} 24.
Rad1 {[%clk 00:02:32]} {[%emt 00:00:26]} Rd6 {[%clk 00:08:23]} {[%emt
00:00:11]} 25. Ne5 {[%clk 00:01:35]} {[%emt 00:01:08]} Nxe5 {[%clk 00:05:17]}
{[%emt 00:03:16]} 26. Qxe5 {[%clk 00:01:43]} {[%emt 00:00:01]} Qd7 {[%clk
00:05:16]} {[%emt 00:00:11]} 27. Rde1 {[%clk 00:01:30]} {[%emt 00:00:24]} Rf3
{[%clk 00:04:51]} {[%emt 00:00:34]} 28. Kg2 {[%clk 00:01:21]} {[%emt 00:00:19]}
Rfd3 {[%clk 00:03:56]} {[%emt 00:01:05]} 29. Re3 {[%clk 00:01:12]} {[%emt
00:00:20]} Qc6+ {[%clk 00:03:53]} {[%emt 00:00:13]} 30. Qe4 {[%clk 00:01:05]}
{[%emt 00:00:17]} Qxe4+ {[%clk 00:03:40]} {[%emt 00:00:23]} 31. Rxe4 {[%clk
00:01:14]} {[%emt 00:00:01]} Rd2 {[%clk 00:03:47]} {[%emt 00:00:02]} 32. Re5
{[%clk 00:01:20]} {[%emt 00:00:04]} Rc6 {[%clk 00:03:53]} {[%emt 00:00:04]} 33.
Rfe1 {[%clk 00:01:23]} {[%emt 00:00:08]} Kf7 {[%clk 00:04:01]} {[%emt
00:00:02]} 34. R1e2 {[%clk 00:01:28]} {[%emt 00:00:05]} Rdd6 {[%clk 00:04:08]}
{[%emt 00:00:02]} 35. Kf1 {[%clk 00:01:22]} {[%emt 00:00:17]} a5 {[%clk
00:04:13]} {[%emt 00:00:04]} 36. Ke1 {[%clk 00:01:29]} {[%emt 00:00:03]} Rc7
{[%clk 00:04:05]} {[%emt 00:00:19]} 37. f3 {[%clk 00:00:42]} {[%emt 00:00:56]}
a4 {[%clk 00:04:11]} {[%emt 00:00:05]} 38. h4 {[%clk 00:00:49]} {[%emt
00:00:03]} Rb6 {[%clk 00:03:51]} {[%emt 00:00:30]} 39. R2e3 {[%clk 00:00:53]}
{[%emt 00:00:05]} Ra6 {[%clk 00:03:51]} {[%emt 00:00:10]} 40. Kf2 {[%clk
00:01:01]} {[%emt 00:00:03]} axb3 {[%clk 00:03:56]} {[%emt 00:00:05]} 41. axb3
{[%clk 00:01:06]} {[%emt 00:00:05]} Rd6 {[%clk 00:04:02]} {[%emt 00:00:04]} 42.
Ke2 {[%clk 00:01:03]} {[%emt 00:00:13]} Ra7 {[%clk 00:03:44]} {[%emt 00:00:27]}
43. Kf2 {[%clk 00:01:08]} {[%emt 00:00:06]} Rc6 {[%clk 00:03:43]} {[%emt
00:00:11]} 44. h5 {[%clk 00:01:14]} {[%emt 00:00:04]} Ra2+ {[%clk 00:03:32]}
{[%emt 00:00:21]} 45. Re2 {[%clk 00:01:03]} {[%emt 00:00:20]} Ra3 {[%clk
00:03:34]} {[%emt 00:00:08]} 46. R2e3 {[%clk 00:01:12]} {[%emt 00:00:01]} Kf6
{[%clk 00:03:36]} {[%emt 00:00:08]} 47. hxg6 {[%clk 00:01:20]} {[%emt
00:00:02]} hxg6 {[%clk 00:03:42]} {[%emt 00:00:04]} 48. Kg3 {[%clk 00:01:11]}
{[%emt 00:00:19]} Ra1 {[%clk 00:03:12]} {[%emt 00:00:40]} 49. Kf2 {[%clk
00:00:59]} {[%emt 00:00:23]} g5 {[%clk 00:03:13]} {[%emt 00:00:09]} 50. Re1
{[%clk 00:00:56]} {[%emt 00:00:13]} Rxe1 {[%clk 00:03:06]} {[%emt 00:00:17]} 51.
Rxe1 {[%clk 00:01:05]} {[%emt 00:00:01]} Rb6 {[%clk 00:03:04]} {[%emt
00:00:12]} 52. Re3 {[%clk 00:01:14]} {[%emt 00:00:01]} Ra6 {[%clk 00:03:12]}
{[%emt 00:00:02]} 53. Rd3 {[%clk 00:01:19]} {[%emt 00:00:05]} Ke5 {[%clk
00:02:59]} {[%emt 00:00:22]} 54. Ke3 {[%clk 00:01:14]} {[%emt 00:00:16]} Ra3
{[%clk 00:02:58]} {[%emt 00:00:10]} 55. Rc3 {[%clk 00:01:20]} {[%emt 00:00:05]}
Ra1 {[%clk 00:02:59]} {[%emt 00:00:08]} 56. Rd3 {[%clk 00:01:21]} {[%emt
00:00:09]} Re1+ {[%clk 00:03:01]} {[%emt 00:00:09]} 57. Kf2 {[%clk 00:01:26]}
{[%emt 00:00:05]} Rc1 {[%clk 00:03:04]} {[%emt 00:00:06]} 58. Re3+ {[%clk
00:01:24]} {[%emt 00:00:12]} Kf6 {[%clk 00:02:42]} {[%emt 00:00:32]} 59. Rd3
{[%clk 00:01:22]} {[%emt 00:00:12]} Rb1 {[%clk 00:02:47]} {[%emt 00:00:05]} 60.
Ke3 {[%clk 00:01:16]} {[%emt 00:00:17]} Rb2 {[%clk 00:02:54]} {[%emt 00:00:03]}
61. Rc3 {[%clk 00:01:07]} {[%emt 00:00:19]} e5 {[%clk 00:03:01]} {[%emt
00:00:03]} 62. Rd3 {[%clk 00:01:12]} {[%emt 00:00:05]} e6 {[%clk 00:03:02]}
{[%emt 00:00:09]} 63. Ke4 {[%clk 00:01:06]} {[%emt 00:00:15]} Re2+ {[%clk
00:03:06]} {[%emt 00:00:06]} 64. Re3 {[%clk 00:01:15]} Ra2 {[%clk 00:03:06]}
{[%emt 00:00:10]} 65. Rd3 {[%clk 00:01:19]} {[%emt 00:00:06]} Ra6 {[%clk
00:03:04]} {[%emt 00:00:10]} 66. Ke3 {[%clk 00:00:58]} {[%emt 00:00:33]} Rb6
{[%clk 00:03:12]} {[%emt 00:00:03]} 67. Rc3 {[%clk 00:00:58]} {[%emt 00:00:10]}
Rd6 {[%clk 00:03:09]} {[%emt 00:00:13]} 68. Rd3 {[%clk 00:01:07]} {[%emt
00:00:01]} Rd4 {[%clk 00:03:13]} {[%emt 00:00:06]} 69. Rd2 {[%clk 00:00:57]}
{[%emt 00:00:19]} Ke7 {[%clk 00:03:20]} {[%emt 00:00:03]} 70. Ra2 {[%clk
00:00:58]} {[%emt 00:00:10]} Rd7 {[%clk 00:03:10]} {[%emt 00:00:20]} 71. Ra5
{[%clk 00:00:59]} {[%emt 00:00:09]} Rc7 {[%clk 00:02:39]} {[%emt 00:00:41]} 72.
Ke4 {[%clk 00:00:57]} {[%emt 00:00:12]} Kf6 {[%clk 00:02:45]} {[%emt 00:00:04]}
73. Rb5 {[%clk 00:01:05]} {[%emt 00:00:02]} Rc8 {[%clk 00:02:53]} {[%emt
00:00:02]} 74. Ke3 {[%clk 00:01:03]} {[%emt 00:00:12]} Rc7 {[%clk 00:02:49]}
{[%emt 00:00:14]} 75. Ke4 {[%clk 00:01:10]} {[%emt 00:00:02]} Rc8 {[%clk
00:02:49]} {[%emt 00:00:11]} 76. Ke3 {[%clk 00:01:10]} {[%emt 00:00:09]} Rc6
{[%clk 00:02:57]} {[%emt 00:00:02]} 77. Ke4 {[%clk 00:01:19]} {[%emt 00:00:02]}
Rc7 {[%clk 00:03:04]} {[%emt 00:00:02]} 1/2-1/2